{"text_format":"2","workbook":"xlsx","n_sheets":3,"sheets":["1ºCEB","2ºCEB","3ºCEB"],"not_rendered":{"charts":0,"images":0,"macros":0,"external_links":0,"defined_names":1,"comments":0,"pivot_tables":0},"unopened":[],"bounds":{"document_bytes":16777216,"sheet_cells":100000,"run_cost":"one","rows_first":2000,"rows_last":500,"rows_between":2000,"halvings":0,"cell_chars":16384,"cell_head_chars":4096},"cells_cut":0,"cells_raw":0,"read":"whole","date_system":"1900"}

{"sheet":"1ºCEB","index":0,"n_rows":17,"n_cols":7,"rows_kept":17,"cut":false,"hidden":false,"merged":[]}
[]
[]
[null,"TEER 2010/2011","1º Ciclo do Ensino Básico"]
[]
[]
["Concelho","Nome do aluno","Teórica (cot)","Prática (nº de falhas)","Prática (cotação)","Total","Apreciação"]
["São Vicente","Daniela Domingos",81,1,{"$f":"100-D7*5","v":95},{"$f":"C7+E7","v":176},{"$f":"F7","v":176}]
["Santana","Pedro Teles",82,0,100,182,182]
["Santa Cruz","Miguel Ramalhosa",91,3,85,176,176]
["Ribeira Brava","Nuno Andrade",90,1,95,185,185]
["Porto Santo","Luís Sousa",82,3,85,167,167]
["Ponta do Sol","José Silva",72,1,95,167,167]
["Funchal","Tatiana Abreu",81,1,95,176,176]
["Câmara de Lobos","Gonçalo Castro",100,1,95,195,195]
["Calheta","Patrícia Gonçalves",63,3,85,148,148]
["Machico","Daniel Ferreira",64,1,95,159,159]
["Porto Moniz","Ana Filipa Sousa",91,2,90,181,181]

{"sheet":"2ºCEB","index":1,"n_rows":32,"n_cols":7,"rows_kept":32,"cut":false,"hidden":false,"merged":[]}
[]
[null,"TEER 2010/2011","2º Ciclo do Ensino Básico"]
[]
["Escola","Nome do aluno","Teórica (cot)","Prática (nº de falhas)","Prática (cotação)","Total","Apreciação"]
["Lucinda Andrade","Fábio Martins",82,1,{"$f":"100-D5*5","v":95},{"$f":"C5+E5","v":177},{"$f":"F5","v":177}]
["Francisco M S Barreto ","Diogo Alves",83,0,100,183,183]
["SÃO ROQUE ","Gregório Cruz",53,2,90,143,143]
["Ângelo Augusto da Silva ","Pedro Nunes",71,1,95,166,166]
["Estreito de Câmara de Lobos ","Wilson Ferreira",61,3,85,146,146]
["Machico","William Silva",79,2,90,169,169]
["Caniço ","Margarida Freitas",61,2,90,151,151]
["São Jorge ","José Pacheco",45,4,80,125,125]
["Porto da Cruz ","Gonçalo Tavares",80,1,95,175,175]
["Alfredo Ferreira Nóbrega Júnior ","João Fernandes",84,0,100,184,184]
["Santo António ","Carlos Gouveia",85,0,100,185,185]
["Santa Cruz ","Sara Santos",87,1,95,182,182]
["Gonçalves Zarco ","Valter Andrade",81,4,80,161,161]
["Carmo","Daniel Soares",64,1,95,159,159]
["Ponta do Sol","Élvio Fernandes",80,2,{"$f":"100-D19*5","v":90},{"$f":"C19+E19","v":170},{"$f":"F19","v":170}]
["Calheta","Diogo Freitas",77,0,100,177,177]
["Curral das Freiras","João Espírito Santo",84,1,95,179,179]
["Santana","Joaquim Costa",82,1,95,177,177]
[" Torre","José Freitas",78,1,95,173,173]
["Padre Manuel Álvares ","Luís Valério",65,5,75,140,140]
["Bartolomeu Perestrelo ","Lourenço Gamelas",67,4,80,147,147]
["Horácio Bento Gouveia","João Marcelo Sousa",80,0,100,180,180]
["Colégio de Santa Teresinha ","Fábio Viveiros ",96,2,90,186,186]
["Louros","Sérgio Teixeira",50,6,70,120,120]
["Caniçal","João Sousa",77,3,85,162,162]
["Francisco de Freitas Branco","Alexandre Dias",63,2,90,153,153]
["Campanário","João Pedro",83,1,95,178,178]
["Infante D. Henrique ","Gonçalo Gomes  ",77,1,95,172,172]

{"sheet":"3ºCEB","index":2,"n_rows":33,"n_cols":7,"rows_kept":33,"cut":false,"hidden":false,"merged":[]}
[]
[]
[null,"TEER 2010/2011","3º Ciclo do Ensino Básico"]
[]
["Escola","Nome do aluno","Teórica (cot)","Prática (nº de falhas)","Prática (cotação)","Total","Apreciação"]
["Lucinda Andrade","Ana Monte",80,1,{"$f":"100-D6*5","v":95},{"$f":"C6+E6","v":175},{"$f":"F6","v":175}]
["Francisco M S Barreto ","Filipe Jardim",75,1,95,170,170]
["SÃO ROQUE ","Diogo Sá",75,0,100,175,175]
["Ângelo Augusto da Silva ","Tiago Castro",75,3,85,160,160]
["Estreito de Câmara de Lobos ","Pedro Faria",75,4,80,155,155]
["Machico","José Alves ",80,3,85,165,165]
["Caniço ","Álvaro Hilário",70,2,90,160,160]
["São Jorge ","Marco Freitas",75,2,90,165,165]
["Porto da Cruz ","Valter Sousa",60,2,90,150,150]
["Alfredo Ferreira Nóbrega Júnior ","Dário Camacho",80,0,100,180,180]
["Santo António ","Diogo Sousa",60,1,95,155,155]
["Santa Cruz ","Carlos Luz",75,2,90,165,165]
["Gonçalves Zarco ","Sérgio Ribeiro",75,3,85,160,160]
["Carmo","Gonçalo Sá",null,20,0,0,0]
["Ponta do Sol","João Abreu",75,0,{"$f":"100-D20*5","v":100},{"$f":"C20+E20","v":175},{"$f":"F20","v":175}]
["Calheta","Cristiano Sousa",75,0,100,175,175]
["Curral das Freiras","Arsénio Fernandes",65,1,95,160,160]
["Santana","Giovani Patrício",85,2,90,175,175]
[" Torre","Herculano Ferreira",90,null,100,190,190]
["Padre Manuel Álvares ","Cláudio Ascensão ",null,20,0,0,0]
["Bartolomeu Perestrelo ","Bernardo Lourenço",70,1,95,165,165]
["Horácio Bento Gouveia","José Filipe Marques",80,1,95,175,175]
["Colégio de Santa Teresinha ",null,null,20,0,0,0]
["Louros","Luís Ruel",75,0,100,175,175]
["Caniçal","Paulo Veríssimo",60,2,90,150,150]
["Francisco de Freitas Branco","David Drumond",75,3,85,160,160]
["Campanário","Élvio Gomes",80,1,95,175,175]
["Infante D. Henrique ","Nisa Silva",85,1,95,180,180]